fUSD/lending_fUSD_20250616
["ID","MTS","AMOUNT","RATE_DAILY","PERIOD"]
[366100859,1750062647984,-490.0,0.00016438,2]
[366100860,1750062647993,-1992.34,0.00016438,2]
[366100861,1750062648003,-1125.82,0.00016438,2]
[366100862,1750062648012,-1712.93,0.00016438,2]
[366100863,1750062648021,-490.0,0.00016438,2]
[366100864,1750062648031,-1320.78,0.00016438,2]
[366100865,1750062648042,-982.41,0.00016438,2]
[366100866,1750062648052,-5133.19,0.00016438,2]
[366100867,1750062648062,-500.0,0.00016438,2]
[366100868,1750062648072,-500.0,0.00016438,2]
[366100869,1750062648082,-2224.15,0.00016438,2]
[366100870,1750062648092,-970.11,0.00016438,2]
[366100871,1750062648103,-2271.05,0.00016438,2]
[366100872,1750062648112,-2522.79,0.00016438,2]
[366100873,1750062648122,-490.0,0.00016438,2]
[366100874,1750062648132,-1790.99,0.00016438,2]
[366100875,1750062648141,-490.0,0.00016438,2]
[366100876,1750062648151,-1309.97,0.00016438,2]
[366100877,1750062648161,-1241.12,0.00016438,2]
[366100878,1750062648171,-1588.9,0.00016438,2]
[366100879,1750062648181,-490.0,0.00016438,2]
[366100880,1750062648191,-1888.79,0.00016438,2]
[366100881,1750062648200,-6589.12,0.00016438,2]
[366100882,1750062648210,-1113.67,0.00016438,2]
[366100883,1750062648220,-1249.61,0.00016438,2]
[366100884,1750062648230,-569.19,0.00016438,2]
[366100885,1750062648243,-490.0,0.00016438,2]
[366100886,1750062648253,-356.7813325,0.00016438,2]
[366100887,1750062648263,-1218.4,0.00016438,2]
[366100888,1750062648273,-645.38,0.00016438,2]
[366100889,1750062648283,-2304.94,0.00016438,2]
[366100890,1750062648293,-490.0,0.00016438,2]
[366100891,1750062648304,-855.46,0.00016438,2]
[366100892,1750062648314,-1038.28,0.00016438,2]
[366100893,1750062648326,-766.73,0.00016438,2]
[366100894,1750062648336,-538.58,0.00016438,2]
[366100895,1750062648346,-796.55,0.00016438,2]
[366100896,1750062648356,-1835.38,0.00016438,2]
[366100897,1750062648367,-490.0,0.00016438,2]
[366100898,1750062648377,-2353.39,0.00016438,2]
[366100899,1750062648387,-3593.52,0.00016438,2]
[366100900,1750062648397,-1811.44,0.00016438,2]
[366100901,1750062648407,-490.0,0.00016438,2]
[366100902,1750062648417,-10467.86,0.00016438,2]
[366100903,1750062648428,-22965.63,0.00016438,2]
[366100904,1750062648439,-490.0,0.00016438,2]
[366100905,1750062648449,-490.0,0.00016438,2]
[366100906,1750062648460,-601.65,0.00016438,2]
[366100907,1750062648470,-864.77,0.00016438,2]
[366100908,1750062648480,-7519.47,0.00016438,2]
[366100909,1750062648490,-1151.03,0.00016438,2]
[366100910,1750062648500,-490.0,0.00016438,2]
[366100911,1750062648510,-3873.29,0.00016438,2]
[366100912,1750062648520,-506.04,0.00016438,2]
[366100913,1750062648531,-1263.62,0.00016438,2]
[366100914,1750062648541,-767.14,0.00016438,2]
[366100915,1750062648551,-1744.87,0.00016438,2]
[366100916,1750062648562,-3073.11,0.00016438,2]
[366100917,1750062648572,-490.0,0.00016438,2]
[366100918,1750062648583,-798.26,0.00016438,2]
[366100919,1750062648593,-490.0,0.00016438,2]
[366100920,1750062648603,-5935.27,0.00016438,2]
[366100921,1750062648614,-490.0,0.00016438,2]
[366100922,1750062648624,-989.18,0.00016438,2]
[366100923,1750062648634,-563.14,0.00016438,2]
[366100924,1750062648644,-3048.8,0.00016438,2]
[366100925,1750062648654,-1748.68,0.00016438,2]
[366100926,1750062648664,-1555.83,0.00016438,2]
[366100927,1750062648675,-1146.55,0.00016438,2]
[366100928,1750062648686,-1133.59,0.00016438,2]
[366100929,1750062648696,-490.0,0.00016438,2]
[366100930,1750062648707,-797.53,0.00016438,2]
[366100931,1750062648718,-709.21,0.00016438,2]
[366100932,1750062648728,-1458.31,0.00016438,2]
[366100933,1750062648738,-1076.79,0.00016438,2]
[366100934,1750062648748,-1174.85,0.00016438,2]
[366100935,1750062648758,-490.0,0.00016438,2]
[366100936,1750062648768,-913.89,0.00016438,2]
[366100937,1750062648778,-490.0,0.00016438,2]
[366100938,1750062648789,-3000.3,0.00016438,2]
[366100939,1750062648799,-490.0,0.00016438,2]
[366100940,1750062648810,-490.0,0.00016438,2]
[366100941,1750062648819,-490.0,0.00016438,2]
[366100942,1750062648829,-490.0,0.00016438,2]
[366100943,1750062648839,-490.0,0.00016438,2]
[366100944,1750062648849,-3926.67,0.00016438,2]
[366100945,1750062648859,-1125.07,0.00016438,2]
[366100946,1750062648869,-1260.6,0.00016438,2]
[366100947,1750062648878,-300.0,0.00016438,2]
[366100948,1750062648888,-500.0,0.00016438,2]
[366100949,1750062648898,-22334.4,0.00016438,2]
[366100950,1750062648910,-500.0,0.00016438,2]
[366100951,1750062648920,-500.0,0.00016438,2]
[366100952,1750062648929,-876.42,0.00016438,2]
[366100953,1750062648939,-490.0,0.00016438,2]
[366100954,1750062648948,-2469.01,0.00016438,2]
[366100955,1750062648958,-3559.96,0.00016438,2]
[366100956,1750062648968,-2292.36,0.00016438,2]
[366100957,1750062648978,-1197.9,0.00016438,2]
[366100958,1750062648988,-658.69,0.00016438,2]
[366100959,1750062648998,-579.09,0.00016438,2]
[366100960,1750062649007,-490.0,0.00016438,2]
[366100961,1750062649017,-3478.52,0.00016438,2]
[366100962,1750062649026,-1313.98,0.00016438,2]
[366100963,1750062649036,-490.0,0.00016438,2]
[366100964,1750062649141,-3784.76,0.00016438,2]
[366100965,1750062649151,-491.05134449,0.00016438,2]
[366100966,1750062649160,-762.92,0.00016438,2]
[366100967,1750062649170,-490.0,0.00016438,2]
[366100968,1750062649181,-490.0,0.00016438,2]
[366100969,1750062649190,-1572.87,0.00016438,2]
[366100970,1750062649200,-490.0,0.00016438,2]
[366100971,1750062649209,-1831.06,0.00016438,2]
[366100972,1750062649219,-490.0,0.00016438,2]
[366100973,1750062649230,-18457.84,0.00016438,2]
[366100974,1750062649240,-490.0,0.00016438,2]
[366100975,1750062649250,-638.84,0.00016438,2]
[366100976,1750062649260,-1078.13,0.00016438,2]
[366100977,1750062649269,-490.0,0.00016438,2]
[366100978,1750062649279,-490.0,0.00016438,2]
[366100979,1750062649288,-778.47,0.00016438,2]
[366100980,1750062649297,-670.48,0.00016438,2]
[366100981,1750062649306,-3683.44,0.00016438,2]
[366100982,1750062649317,-781.33,0.00016438,2]
[366100983,1750062649327,-493.73,0.00016438,2]
[366100984,1750062649336,-1346.89,0.00016438,2]
[366100985,1750062649346,-490.0,0.00016438,2]
[366100986,1750062649356,-8063.79,0.00016438,2]
[366100987,1750062649365,-490.0,0.00016438,2]
[366100988,1750062649374,-1111.22,0.00016438,2]
[366100989,1750062649384,-1290.39,0.00016438,2]
[366100990,1750062649395,-831.37,0.00016438,2]
[366100991,1750062649405,-1417.12,0.00016438,2]
[366100992,1750062649414,-490.0,0.00016438,2]
[366100993,1750062649425,-1237.53,0.00016438,2]
[366100994,1750062649434,-1042.42,0.00016438,2]
[366100995,1750062649444,-490.0,0.00016438,2]
[366100996,1750062649454,-1408.43,0.00016438,2]
[366100997,1750062649463,-490.0,0.00016438,2]
[366100998,1750062649473,-490.0,0.00016438,2]
[366100999,1750062649483,-490.0,0.00016438,2]
[366101000,1750062649492,-490.0,0.00016438,2]
[366101001,1750062649502,-490.0,0.00016438,2]
[366101002,1750062649512,-996.27,0.00016438,2]
[366101003,1750062649522,-5335.25,0.00016438,2]
[366101004,1750062649531,-821.53,0.00016438,2]
[366101005,1750062649541,-490.0,0.00016438,2]
[366101006,1750062649551,-490.0,0.00016438,2]
[366101007,1750062649560,-527.76,0.00016438,2]
[366101008,1750062649571,-490.0,0.00016438,2]
[366101009,1750062649581,-1817.91548436,0.00016448,2]
[366101010,1750062649590,-3563.59963218,0.00016452,2]
[366101011,1750062649600,-2099.64630709,0.00016457,2]
[366101012,1750062649610,-150.0,0.00016465,2]
[366101013,1750062649619,-3563.59963218,0.00016486,2]
[366101014,1750062649629,-150.0,0.00016499,2]
[366101015,1750062649639,-2329.34,0.000165,2]
[366101016,1750062649648,-463.77,0.000165,2]
[366101017,1750062649657,-1595.02,0.000165,2]
[366101018,1750062649667,-30000.0,0.000165,2]
[366101019,1750062649677,-177.87419575,0.00016502,2]
[366101020,1750062649687,-150.0,0.00016502,2]
[366101021,1750062649696,-1817.91548436,0.00016502,2]
[366101022,1750062649706,-150.0,0.00016505,2]
[366101023,1750062649717,-150.0,0.00016508,2]
[366101024,1750062649727,-150.0,0.00016513,2]
[366101025,1750062649737,-150.0,0.00016513,2]
[366101026,1750062649747,-2099.64630709,0.00016516,2]
[366101027,1750062649756,-150.0,0.00016517,2]
[366101028,1750062649766,-1000.0,0.00016517,2]
[366101029,1750062649776,-3563.59963218,0.00016521,2]
[366101030,1750062649786,-150.0,0.00016528,2]
[366101031,1750062649796,-150.0,0.0001653,2]
[366101032,1750062649806,-150.0,0.00016534,2]
[366101033,1750062649815,-150.0,0.00016538,2]
[366101034,1750062649824,-171.0,0.00016542,2]
[366101035,1750062649833,-150.0,0.00016547,2]
[366101036,1750062649843,-150.0,0.00016548,2]
[366101037,1750062649851,-833.8156298,0.0001655,2]
[366101038,1750062649862,-150.0,0.00016553,2]
[366101039,1750062649871,-3563.59963218,0.00016555,2]
[366101040,1750062649880,-1817.91548436,0.00016557,2]
[366101041,1750062649890,-150.0,0.00016565,2]
[366101042,1750062649900,-150.0,0.00016573,2]
[366101043,1750062649909,-2099.64630709,0.00016576,2]
[366101044,1750062649919,-946.0,0.00016581,2]
[366101045,1750062649929,-3333.0,0.00016581,2]
[366101046,1750062649940,-7112.0,0.00016581,2]
[366101047,1750062649950,-155.0,0.00016589,2]
[366101048,1750062649959,-3563.59963218,0.0001659,2]
[366101049,1750062649968,-160.97116268,0.00016592,2]
[366101050,1750062649978,-150.0,0.00016594,2]
[366101051,1750062649987,-3076.16,0.000166,2]
[366101052,1750062649996,-150.0,0.000166,2]
[366101053,1750062650006,-500.0,0.00016601,2]
[366101054,1750062650016,-500.0,0.00016601,2]
[366101055,1750062650025,-268.084298,0.00016602,2]
[366101056,1750062650034,-151.0,0.00016602,2]
[366101057,1750062650043,-151.0,0.00016602,2]
[366101058,1750062650053,-696.178832,0.00016602,2]
[366101059,1750062650062,-696.178832,0.00016602,2]
[366101060,1750062650072,-1353.112308,0.00016602,2]
[366101061,1750062650081,-151.0,0.00016602,2]
[366101062,1750062650090,-151.0,0.00016602,2]
[366101063,1750062650099,-1353.112308,0.00016602,2]
[366101064,1750062650109,-151.0,0.00016602,2]
[366101065,1750062650119,-151.0,0.00016602,2]
[366101066,1750062650128,-235.781748,0.00016602,2]
[366101067,1750062650138,-235.781748,0.00016602,2]
[366101068,1750062650147,-553.70555967,0.00016602,2]
[366101069,1750062650158,-203.295396,0.00016602,2]
[366101070,1750062650170,-203.295396,0.00016602,2]
[366101071,1750062650180,-151.0,0.00016602,2]
[366101072,1750062650190,-490.0,0.00016602,2]
[366101073,1750062650199,-584.09661243,0.00016602,2]
[366101074,1750062650210,-490.0,0.00016602,2]
[366101075,1750062650220,-490.0,0.00016602,2]
[366101076,1750062650231,-490.0,0.00016602,2]
[366101077,1750062650244,-490.0,0.00016602,2]
[366101078,1750062650255,-597.3,0.00016602,2]
[366101079,1750062650265,-490.0,0.00016602,2]
[366101080,1750062650275,-650.93,0.00016602,2]
[366101081,1750062650286,-490.0,0.00016602,2]
[366101082,1750062650295,-250.0,0.00016602,2]
[366101083,1750062650305,-490.0,0.00016602,2]
[366101084,1750062650315,-554.83,0.00016602,2]
[366101085,1750062650326,-490.0,0.00016602,2]
[366101086,1750062650336,-490.0,0.00016602,2]
[366101087,1750062650345,-180.07336073,0.00016602,2]
[366101088,1750062650355,-490.0,0.00016602,2]
[366101089,1750062650364,-490.0,0.00016602,2]
[366101090,1750062650374,-490.0,0.00016602,2]
[366101091,1750062650385,-490.0,0.00016602,2]
[366101092,1750062650395,-490.0,0.00016602,2]
[366101093,1750062650404,-490.0,0.00016602,2]
[366101094,1750062650414,-631.84,0.00016602,2]
[366101095,1750062650423,-490.0,0.00016602,2]
[366101096,1750062650435,-490.0,0.00016602,2]
[366101097,1750062650444,-490.0,0.00016602,2]
[366101098,1750062650454,-490.0,0.00016602,2]
[366101099,1750062650464,-490.0,0.00016602,2]
[366101100,1750062650473,-490.0,0.00016602,2]
[366101101,1750062650483,-490.0,0.00016602,2]
[366101102,1750062650492,-331.19262871,0.00016602,2]
[366101103,1750062650502,-542.81,0.00016602,2]
[366101104,1750062650512,-634.4639815,0.00016602,2]
[366101105,1750062650521,-490.0,0.00016602,2]
[366101106,1750062650530,-534.2,0.00016602,2]
[366101107,1750062650540,-490.0,0.00016602,2]
[366101108,1750062650550,-525.8,0.00016602,2]
[366101109,1750062650560,-490.0,0.00016602,2]
[366101110,1750062650569,-490.0,0.00016602,2]
[366101111,1750062650579,-490.0,0.00016602,2]
[366101112,1750062650589,-490.0,0.00016602,2]
[366101113,1750062650599,-490.0,0.00016602,2]
[366101114,1750062650610,-490.0,0.00016602,2]
[366101115,1750062650619,-490.0,0.00016602,2]
[366101116,1750062650629,-490.0,0.00016602,2]
[366101117,1750062650639,-521.88124061,0.00016602,2]
[366101118,1750062650648,-490.0,0.00016602,2]
[366101119,1750062650658,-490.0,0.00016602,2]
[366101120,1750062650668,-490.0,0.00016602,2]
[366101121,1750062650678,-490.0,0.00016602,2]
[366101122,1750062650687,-551.93,0.00016602,2]
[366101123,1750062650697,-490.0,0.00016602,2]
[366101124,1750062650706,-490.0,0.00016602,2]
[366101125,1750062650715,-490.0,0.00016602,2]
[366101126,1750062650725,-490.0,0.00016602,2]
[366101127,1750062650735,-490.0,0.00016602,2]
[366101128,1750062650745,-490.0,0.00016602,2]
[366101129,1750062650754,-490.0,0.00016602,2]
[366101130,1750062650764,-490.0,0.00016602,2]
[366101131,1750062650773,-2953.673205,0.00016602,2]
[366101132,1750062650783,-490.0,0.00016602,2]
[366101133,1750062650792,-490.0,0.00016602,2]
[366101134,1750062650802,-490.0,0.00016602,2]
[366101135,1750062650812,-884.91,0.00016602,2]
[366101136,1750062650823,-766.03,0.00016602,2]
[366101137,1750062650833,-2074.037067,0.00016602,2]
[366101138,1750062650844,-490.0,0.00016602,2]
[366101139,1750062650855,-803.57,0.00016602,2]
[366101140,1750062650864,-490.0,0.00016602,2]
[366101141,1750062650874,-502.84,0.00016602,2]
[366101142,1750062650883,-490.0,0.00016602,2]
[366101143,1750062650893,-490.0,0.00016602,2]
[366101144,1750062650902,-490.0,0.00016602,2]
[366101145,1750062650913,-490.0,0.00016602,2]
[366101146,1750062650922,-566.6,0.00016602,2]
[366101147,1750062650932,-490.0,0.00016602,2]
[366101148,1750062650942,-490.0,0.00016602,2]
[366101149,1750062650952,-490.0,0.00016602,2]
[366101150,1750062650961,-490.0,0.00016602,2]
[366101151,1750062650970,-607.39,0.00016602,2]
[366101152,1750062650980,-952.96,0.00016602,2]
[366101153,1750062650990,-490.0,0.00016602,2]
[366101154,1750062650999,-490.0,0.00016602,2]
[366101155,1750062651009,-497.06,0.00016602,2]
[366101156,1750062651018,-490.0,0.00016602,2]
[366101157,1750062651028,-704.25,0.00016602,2]
[366101158,1750062651037,-569.08,0.00016602,2]
[366101159,1750062651046,-522.11,0.00016602,2]
[366101160,1750062651056,-490.0,0.00016602,2]
[366101161,1750062651065,-602.29,0.00016602,2]
[366101162,1750062651074,-643.14,0.00016602,2]
[366101163,1750062651083,-1047.39,0.00016602,2]
[366101164,1750062651092,-153.43757,0.00016602,2]
[366101165,1750062651101,-490.0,0.00016602,2]
[366101166,1750062651110,-739.65,0.00016602,2]
[366101167,1750062651119,-1475.37,0.00016602,2]
[366101168,1750062651129,-490.0,0.00016602,2]
[366101169,1750062651138,-490.0,0.00016602,2]
[366101170,1750062651148,-490.0,0.00016602,2]
[366101171,1750062651157,-490.0,0.00016602,2]
[366101172,1750062651166,-681.13,0.00016602,2]
[366101173,1750062651175,-490.0,0.00016602,2]
[366101174,1750062651185,-490.0,0.00016602,2]
[366101175,1750062651194,-490.0,0.00016602,2]
[366101176,1750062651203,-507.2,0.00016602,2]
[366101177,1750062651212,-490.0,0.00016602,2]
[366101178,1750062651222,-490.0,0.00016602,2]
[366101179,1750062651231,-914.34,0.00016602,2]
[366101180,1750062651242,-490.0,0.00016602,2]
[366101181,1750062651252,-862.08,0.00016602,2]
[366101182,1750062651262,-533.63,0.00016602,2]
[366101183,1750062651273,-490.0,0.00016602,2]
[366101184,1750062651282,-490.0,0.00016602,2]
[366101185,1750062651291,-356.43569014,0.00016602,2]
[366101186,1750062651301,-490.0,0.00016602,2]
[366101187,1750062651311,-490.0,0.00016602,2]
[366101188,1750062651323,-868.64,0.00016602,2]
[366101189,1750062651333,-490.0,0.00016602,2]
[366101190,1750062651343,-1158.24,0.00016602,2]
[366101191,1750062651352,-602.67,0.00016602,2]
[366101192,1750062651362,-490.0,0.00016602,2]
[366101193,1750062651371,-1116.79,0.00016602,2]
[366101194,1750062651381,-623.56,0.00016602,2]
[366101195,1750062651391,-593.22,0.00016602,2]
[366101196,1750062651400,-1053.99,0.00016602,2]
[366101197,1750062651410,-490.0,0.00016602,2]
[366101198,1750062651419,-490.0,0.00016602,2]
[366101199,1750062651428,-589.45,0.00016602,2]
[366101200,1750062651438,-490.0,0.00016602,2]
[366101201,1750062651447,-1124.68,0.00016602,2]
[366101202,1750062651457,-490.0,0.00016602,2]
[366101203,1750062651467,-490.0,0.00016602,2]
[366101204,1750062651478,-560.59,0.00016602,2]
[366101205,1750062651487,-490.0,0.00016602,2]
[366101206,1750062651496,-490.0,0.00016602,2]
[366101207,1750062651505,-490.0,0.00016602,2]
[366101208,1750062651515,-490.0,0.00016602,2]
[366101209,1750062651525,-1396.05,0.00016602,2]
[366101210,1750062651534,-490.0,0.00016602,2]
[366101211,1750062651543,-545.33,0.00016602,2]
[366101212,1750062651553,-490.0,0.00016602,2]
[366101213,1750062651563,-512.27,0.00016602,2]
[366101214,1750062651572,-490.0,0.00016602,2]
[366101215,1750062651582,-690.68,0.00016602,2]
[366101216,1750062651593,-490.0,0.00016602,2]
[366101217,1750062651603,-490.0,0.00016602,2]
[366101218,1750062651613,-490.0,0.00016602,2]
[366101219,1750062651624,-858.66,0.00016602,2]
[366101220,1750062651634,-880.88,0.00016602,2]
[366101221,1750062651644,-1118.6,0.00016602,2]
[366101222,1750062651653,-687.94,0.00016602,2]
[366101223,1750062651663,-894.64,0.00016602,2]
[366101224,1750062651674,-490.0,0.00016602,2]
[366101225,1750062651683,-490.0,0.00016602,2]
[366101226,1750062651693,-490.0,0.00016602,2]
[366101227,1750062651703,-578.49,0.00016602,2]
[366101228,1750062651713,-955.02,0.00016602,2]
[366101229,1750062651723,-490.0,0.00016602,2]
[366101230,1750062651733,-1169.42,0.00016602,2]
[366101231,1750062651743,-521.6,0.00016602,2]
[366101232,1750062651753,-551.87,0.00016602,2]
[366101233,1750062651763,-490.0,0.00016602,2]
[366101234,1750062651772,-490.0,0.00016602,2]
[366101235,1750062651782,-490.0,0.00016602,2]
[366101236,1750062651792,-490.0,0.00016602,2]
[366101237,1750062651801,-1093.5,0.00016602,2]
[366101238,1750062651811,-490.0,0.00016602,2]
[366101239,1750062651821,-603.54,0.00016602,2]
[366101240,1750062651830,-490.0,0.00016602,2]
[366101241,1750062651839,-873.95,0.00016602,2]
[366101242,1750062651849,-539.16579855,0.00016602,2]
[366101243,1750062651858,-601.85,0.00016602,2]
[366101244,1750062651867,-534.13,0.00016602,2]
[366101245,1750062651877,-490.0,0.00016602,2]
[366101246,1750062651887,-490.0,0.00016602,2]
[366101247,1750062651896,-490.0,0.00016602,2]
[366101248,1750062651906,-671.23,0.00016602,2]
[366101249,1750062651915,-562.98,0.00016602,2]
[366101250,1750062651925,-1691.19,0.00016602,2]
[366101251,1750062651938,-490.0,0.00016602,2]
[366101252,1750062651948,-631.48,0.00016602,2]
[366101253,1750062651958,-490.0,0.00016602,2]
[366101254,1750062651967,-490.0,0.00016602,2]
[366101255,1750062651976,-547.29,0.00016602,2]
[366101256,1750062651986,-1024.24,0.00016602,2]
[366101257,1750062651995,-490.0,0.00016602,2]
[366101258,1750062652005,-994.49,0.00016602,2]
[366101259,1750062652015,-599.82,0.00016602,2]
[366101260,1750062652025,-1883.91,0.00016602,2]
[366101261,1750062652035,-490.0,0.00016602,2]
[366101262,1750062652045,-490.0,0.00016602,2]
[366101263,1750062652055,-852.72,0.00016602,2]
[366101264,1750062652065,-523.37,0.00016602,2]
[366101265,1750062652074,-490.0,0.00016602,2]
[366101266,1750062652084,-490.0,0.00016602,2]
[366101267,1750062652094,-490.0,0.00016602,2]
[366101268,1750062652104,-511.99,0.00016602,2]
[366101269,1750062652115,-490.0,0.00016602,2]
[366101270,1750062652125,-490.0,0.00016602,2]
[366101271,1750062652134,-490.0,0.00016602,2]
[366101272,1750062652143,-1422.1,0.00016602,2]
[366101273,1750062652153,-490.0,0.00016602,2]
[366101274,1750062652163,-1293.41,0.00016602,2]
[366101275,1750062652172,-630.72,0.00016602,2]
[366101276,1750062652182,-490.0,0.00016602,2]
[366101277,1750062652192,-490.0,0.00016602,2]
[366101278,1750062652202,-490.0,0.00016602,2]
[366101279,1750062652211,-507.53,0.00016602,2]
[366101280,1750062652221,-490.0,0.00016602,2]
[366101281,1750062652231,-541.71,0.00016602,2]
[366101282,1750062652243,-593.76,0.00016602,2]
[366101283,1750062652254,-490.0,0.00016602,2]
[366101284,1750062652263,-490.0,0.00016602,2]
[366101285,1750062652273,-526.59,0.00016602,2]
[366101286,1750062652283,-490.0,0.00016602,2]
[366101287,1750062652293,-529.96,0.00016602,2]
[366101288,1750062652303,-1023.89,0.00016602,2]
[366101289,1750062652313,-1393.33,0.00016602,2]
[366101290,1750062652323,-1859.6,0.00016602,2]
[366101291,1750062652332,-490.0,0.00016602,2]
[366101292,1750062652342,-1122.93,0.00016602,2]
[366101293,1750062652351,-876.26,0.00016602,2]
[366101294,1750062652361,-1552.62,0.00016602,2]
[366101295,1750062652371,-1007.91,0.00016602,2]
[366101296,1750062652381,-490.0,0.00016602,2]
[366101297,1750062652390,-490.0,0.00016602,2]
[366101298,1750062652400,-490.0,0.00016602,2]
[366101299,1750062652410,-1988.72,0.00016602,2]
[366101300,1750062652419,-1011.72,0.00016602,2]
[366101301,1750062652431,-490.0,0.00016602,2]
[366101302,1750062652440,-1291.03,0.00016602,2]
[366101303,1750062652450,-490.0,0.00016602,2]
[366101304,1750062652460,-490.0,0.00016602,2]
[366101305,1750062652470,-490.0,0.00016602,2]
[366101306,1750062652480,-737.42,0.00016602,2]
[366101307,1750062652490,-1991.04,0.00016602,2]
[366101308,1750062652500,-490.0,0.00016602,2]
[366101309,1750062652511,-940.56,0.00016602,2]
[366101310,1750062652520,-490.0,0.00016602,2]
[366101311,1750062652530,-1004.93,0.00016602,2]
[366101312,1750062652540,-490.0,0.00016602,2]
[366101313,1750062652550,-490.0,0.00016602,2]
[366101314,1750062652560,-1468.77,0.00016602,2]
[366101315,1750062652570,-1102.49,0.00016602,2]
[366101316,1750062652579,-490.0,0.00016602,2]
[366101317,1750062652589,-490.0,0.00016602,2]
[366101318,1750062652599,-490.0,0.00016602,2]
[366101319,1750062652608,-490.0,0.00016602,2]
[366101320,1750062652618,-490.0,0.00016602,2]
[366101321,1750062652629,-1676.44,0.00016602,2]
[366101322,1750062652638,-490.0,0.00016602,2]
[366101323,1750062652648,-689.74,0.00016602,2]
[366101324,1750062652658,-1790.76,0.00016602,2]
[366101325,1750062652667,-490.0,0.00016602,2]
[366101326,1750062652677,-490.0,0.00016602,2]
[366101327,1750062652688,-648.04,0.00016602,2]
[366101328,1750062652698,-490.0,0.00016602,2]
[366101329,1750062652708,-1149.02,0.00016602,2]
[366101330,1750062652718,-490.0,0.00016602,2]
[366101331,1750062652727,-490.0,0.00016602,2]
[366101332,1750062652737,-490.0,0.00016602,2]
[366101333,1750062652746,-490.0,0.00016602,2]
[366101334,1750062652756,-518.15,0.00016602,2]
[366101335,1750062652766,-490.0,0.00016602,2]
[366101336,1750062652776,-490.0,0.00016602,2]
[366101337,1750062652785,-1156.87,0.00016602,2]
[366101338,1750062652795,-1315.49,0.00016602,2]
[366101339,1750062652804,-1122.46,0.00016602,2]
[366101340,1750062652814,-749.0,0.00016602,2]
[366101341,1750062652824,-1309.51,0.00016602,2]
[366101342,1750062652833,-490.0,0.00016602,2]
[366101343,1750062652843,-490.0,0.00016602,2]
[366101344,1750062652852,-799.96,0.00016602,2]
[366101345,1750062652861,-1660.6,0.00016602,2]
[366101346,1750062652872,-490.0,0.00016602,2]
[366101347,1750062652882,-490.0,0.00016602,2]
[366101348,1750062652891,-490.0,0.00016602,2]
[366101349,1750062652901,-490.0,0.00016602,2]
[366101350,1750062652910,-953.45,0.00016602,2]
[366101351,1750062652919,-490.0,0.00016602,2]
[366101352,1750062652929,-858.63,0.00016602,2]
[366101353,1750062652938,-490.0,0.00016602,2]
[366101354,1750062652947,-670.87,0.00016602,2]
[366101355,1750062652957,-490.0,0.00016602,2]
[366101356,1750062652966,-490.0,0.00016602,2]
[366101357,1750062652975,-1516.18,0.00016602,2]
[366101358,1750062652986,-1196.73,0.00016602,2]